Cogmind - Beta 15 @@@ ROGUE MODE // 2025.07.10 @ 13:56:18 Player: jumpy Result: Destroyed by B-75 Beast with Magnetic Acceleration Cannon Performance ------------- Evolutions (4) 2000 Regions Visited (9) 1800 Robots Destroyed (113) 565 Value Destroyed (4069) 4069 Prototype IDs (4) 80 Alien Tech Used (0) 0 Bonus (1963) 1963 TOTAL SCORE: 10477 Bonus ------- High Alert Combat Kills 241 Follower Combat Kills 322 Entered Garrisons 400 Used RIF Installer 1000 Cogmind --------- Core Integrity 0/850 Matter 198/300 Energy 159/160 System Corruption 0% Temperature Cool (2) Movement Hovering (52) Location -6/Factory Parts ------- > --- POWER (1) -------- Light Nuclear Core > --- PROPULSION (5) --- Improved Hover Unit Gravmag System Improved Gravmag System > --- UTILITY (6) ------ Large Storage Unit Improved Targeting Computer Advanced Melee Analysis Suite > --- WEAPON (3) ------- (None) > --- INVENTORY (15) --- Light Angular Momentum Engine Light Treads Improved Terrain Scanner Improved Terrain Scanner Hacking Suite Hacking Suite Relay Coupler [NC] (26) Relay Coupler [Grunt] (30) Relay Coupler [Hunter] (17) Advanced Beam Cannon Magnetic Acceleration Cannon Magnetic Acceleration Cannon Mining Laser Scythe Peak State ------------ > --- POWER ------------ Improved Deuterium Engine > --- PROPULSION ------- Light Treads Light Treads Light Treads Light Treads Light Treads > --- UTILITY ---------- Large Storage Unit Improved Targeting Computer Improved Melee Analysis Suite Advanced Melee Analysis Suite Hardened Heavy Armor Plating > --- WEAPON ----------- Magnetic Acceleration Cannon Scythe Scythe > --- INVENTORY -------- Light Nuclear Core Light Angular Momentum Engine Light Treads Gravmag System Improved Gravmag System Improved Terrain Scanner Improved Terrain Scanner Hacking Suite Hacking Suite Relay Coupler [NC] Relay Coupler [Grunt] Relay Coupler [Hunter] Advanced Beam Cannon Magnetic Acceleration Cannon Mining Laser [Rating: 44] Favorites ----------- Power Nuclear Core Engine Ion Engine Power Core Nuclear Core Propulsion Light Treads Treads Light Treads Wheel Wheel Hover Unit Improved Hover Unit Flight Unit VTOL Module Utility Seismic Detector Device Seismic Detector Storage High-capacity Storage Unit Processor Improved Melee Analysis Suite Hackware Hacking Suite Protection Improved Medium Armor Plating Weapon Scythe Energy Gun Field Laser Energy Cannon Advanced Beam Cannon Ballistic Gun Assault Rifle Ballistic Cannon Heavy Assault Cannon Launcher Missile Launcher Slashing Weapon Scythe Build | -11 -10 -9 -8 -8 -8 -7 -6 -6 -6 ------- Run | Yrd Mat Mat Mat Sto Gar Fac Fac Gar Fac Slots Evolved 8 | . . 2 2 . . 2 2 . . Power . | . . . . . . . . . . Propulsion 3 | . . 1 1 . . . 1 . . Utility 4 | . . 1 1 . . 1 1 . . Weapon 1 | . . . . . . 1 . . . Parts Attached 78 | 8 1 15 4 5 5 11 2 21 6 Power 10 | 1 . 2 1 . . . 1 4 1 Engine 5 | 1 . 2 . . . . . 2 . Core 5 | . . . 1 . . . 1 2 1 Reactor . | . . . . . . . . . . Propulsion 30 | 2 . 4 1 4 2 4 . 10 3 Treads 22 | 2 . 4 1 4 2 4 . 5 . Leg . | . . . . . . . . . . Wheel 1 | . . . . . . . . 1 . Hover 3 | . . . . . . . . . 3 Flight 4 | . . . . . . . . 4 . Utility 19 | 3 . 2 2 1 1 3 1 4 2 Device 8 | 2 . 1 2 . . 1 . 2 . Storage 3 | 1 . 1 . . . . . . 1 Processor 3 | . . . . . . . 1 1 1 Hackware 2 | . . . . 1 1 . . . . Protection 3 | . . . . . . 2 . 1 . Artifact . | . . . . . . . . . . Weapon 19 | 2 1 7 . . 2 4 . 3 . Energy Gun 3 | . . 3 . . . . . . . Energy Cannon 3 | . . 3 . . . . . . . Ballistic Gun 4 | 2 1 1 . . . . . . . Ballistic Cannon 4 | . . . . . 1 2 . 1 . Launcher 1 | . . . . . 1 . . . . Special Weapon . | . . . . . . . . . . Impact Weapon . | . . . . . . . . . . Slashing Weapon 4 | . . . . . . 2 . 2 . Piercing Weapon . | . . . . . . . . . . Special Melee Weapon . | . . . . . . . . . . Unidentified Prototypes 4 | . . 3 . . . 1 . . . Parts Lost 46 | . . 5 . 2 8 5 . 20 6 Power 5 | . . 1 . . . . . 3 1 Propulsion 24 | . . 3 . 1 5 4 . 8 3 Utility 10 | . . . . 1 2 . . 6 1 Weapon 7 | . . 1 . . 1 1 . 3 1 Highest Loss Streak 10 | . . 2 . 2 3 2 . 10 6 To Critical Strikes . | . . . . . . . . . . Average Backups 12 | 4 6 7 11 14 14 15 18 14 14 Power . | . 1 . 1 1 1 1 . . 1 Propulsion 2 | 1 2 3 1 3 3 1 2 2 2 Utility 4 | . 2 2 5 6 5 6 8 6 7 Weapon 3 | . 1 1 4 4 4 6 7 4 3 Tool/Special . | . . . . . . . . . . Unused Backups 21 | 1 . 4 . 1 . 1 3 . 11 Power 2 | . . . . . . . 1 . 1 Propulsion 4 | . . 3 . . . . . . 1 Utility 8 | . . . . . . 1 . . 7 Weapon 7 | 1 . 1 . 1 . . 2 . 2 Tool/Special . | . . . . . . . . . . Average Slot Usage (%) 87 | . 100 92 99 95 90 91 85 74 74 Engine 3 | . 14 10 3 . . . . 3 4 Core 4 | . . . 5 9 9 7 6 2 . Treads 28 | . 28 31 36 36 35 29 26 19 25 Device 13 | . 14 17 26 22 18 15 20 4 . Storage 8 | . 14 11 9 9 9 7 6 6 6 Processor 3 | . . . . . . . 5 12 13 Hackware 2 | . . . . . 8 6 . . . Protection 2 | . . . . . . 7 6 2 4 Energy Gun 2 | . . 13 . . . . . . . Energy Cannon 2 | . . 1 18 18 3 . . . . Ballistic Gun 3 | . 28 6 . . . . . . . Ballistic Cannon 3 | . . . . . 6 6 6 4 5 Slashing Weapon 4 | . . . . . . 6 6 11 9 Peak Build Rating 44 | 7 8 18 24 25 25 34 41 43 44 Average Rating 24 | 5 7 13 23 22 22 30 40 34 35 On Entrance 22 | . 7 8 18 24 25 24 34 41 39 Naked Turns . | . . . . . . . . . . Heaviest Build 82 | 14 15 58 59 58 61 71 74 82 82 Greatest Support 100 | 40 40 60 80 80 80 82 82 100 100 Greatest Overweight (x) 17 | . . 1 . . 1 1 . 17 . Average Overweight (x) . | . . . . . . . . 1 . Largest Inventory Capacity 20 | 8 8 20 20 20 20 20 20 20 20 Average Capacity 16 | 7 8 10 20 20 20 20 20 20 15 Most Carried 20 | 7 8 15 15 19 19 19 20 20 15 Average Carried 13 | 4 6 7 13 16 15 17 19 14 14 Final Capacity 20 | 8 8 20 20 20 20 20 20 20 15 Final Carried 20 | 6 8 15 15 18 19 18 20 15 14 Class Distribution -------------------- 61% | Scavenger-Mutant 19% | Mutant 12% | Scavenger-Gladiator 3% | Commander-Gladiator Dominant Class ---------------- Mutant | -10/Materials Scavenger-Mutant | -9/Materials Scavenger-Mutant | -8/Materials Scavenger-Mutant | -8/Storage Scavenger-Mutant | -8/Garrison Scavenger-Mutant | -7/Factory Scavenger-Mutant | -6/Factory Scavenger-Gladiator | -6/Garrison Scavenger-Gladiator | -6/Factory Resources | -11 -10 -9 -8 -8 -8 -7 -6 -6 -6 ----------- Run | Yrd Mat Mat Mat Sto Gar Fac Fac Gar Fac Matter Collected 1853 | 356 102 296 57 70 336 30 . 606 . Remotely 190 | 190 . . . . . . . . . Salvage Created 3758 | 183 263 880 57 650 525 349 . 688 163 Parts 214 | 16 18 59 2 29 40 12 . 31 7 Haulers Intercepted 5 | . 1 3 1 . . . . . . Recyclers Shooed . | . . . . . . . . . . Parts Field Recycled . | . . . . . . . . . . Retrieved Matter . | . . . . . . . . . . Parts Self-Destructed . | . . . . . . . . . . Prevented . | . . . . . . . . . . Kills | -11 -10 -9 -8 -8 -8 -7 -6 -6 -6 ------- Run | Yrd Mat Mat Mat Sto Gar Fac Fac Gar Fac Combat Hostiles Destroyed 97 | . 7 22 . 12 23 8 . 21 4 Melee 21 | . . . . 1 1 5 . 13 1 Guns 29 | . 7 22 . . . . . . . Cannons 35 | . . . . 10 16 2 . 6 1 AOE 11 | . . . . . 6 1 . 2 2 Classes Destroyed 12 | 2 3 3 . . 1 1 . 1 1 Worker 3 | . . 2 . . . . . . 1 Tunneler 6 | 6 . . . . . . . . . Hauler 5 | . 1 3 1 . . . . . . Recycler 1 | 1 . . . . . . . . . Watcher 1 | . . . . . . . . . 1 Swarmer 34 | . 3 10 . . 10 . . 10 1 Grunt 36 | . 4 6 . 5 7 5 . 8 1 Brawler 1 | . . . . . 1 . . . . Duelist 6 | . . 1 . 1 3 . . . 1 Sentry 17 | . . 5 . 6 2 2 . 1 1 Hunter 2 | . . . . . . . . 2 . Programmer 1 | . . . . . . 1 . . . Best Kill Streak 9 | 2 3 7 1 9 6 5 . 8 4 Combat Bots Only 9 | . 3 6 . 9 6 5 . 8 3 Max Kills in Single Turn 3 | 1 1 1 1 1 3 1 . 1 3 Gunslinging . | . . . . . . . . . . Exploded 3 | . . . . . 3 1 . 1 2 Melee 1 | . . . . 1 1 1 . 1 1 Uniques/NPCs Destroyed . | . . . . . . . . . . Combat | -11 -10 -9 -8 -8 -8 -7 -6 -6 -6 -------- Run | Yrd Mat Mat Mat Sto Gar Fac Fac Gar Fac Hostile Shots Fired 731 | . 29 128 . 62 61 118 15 240 78 Missed 222 | . 6 41 . 13 18 43 7 65 29 Hits 509 | . 23 87 . 49 43 75 8 175 49 Melee 14 | . . 2 . 2 8 . . . 2 Projectile 495 | . 23 85 . 47 35 75 8 175 47 Critical Strikes 19 | . . 2 . 6 2 . . 9 . Damage Taken 7615 | . 228 935 . 779 812 941 119 2791 1010 Core 1456 | . 14 158 . 127 219 84 39 742 73 Absorbed by Shields . | . . . . . . . . . . Core Remaining (%) 75 | 100 94 60 . . 37 88 . . . Volleys Fired 247 | 19 17 77 1 30 41 6 . 44 12 Largest 2 | 2 2 2 2 2 2 1 . 1 1 Hottest 136 | 40 40 126 136 136 136 50 . 50 44 Shots Fired 379 | 38 34 139 2 59 45 6 . 44 12 Gun 211 | 38 34 139 . . . . . . . Cannon 162 | . . . 2 59 42 6 . 41 12 Launcher 6 | . . . . . 3 . . 3 . Special . | . . . . . . . . . . Kinetic 220 | 38 34 62 . . 27 6 . 41 12 Thermal 153 | . . 77 2 59 15 . . . . Explosive 6 | . . . . . 3 . . 3 . Electromagnetic . | . . . . . . . . . . Robot Hit Streak 13 | 6 7 10 3 13 8 4 . 10 3 Robot Miss Streak 5 | 5 3 3 . 2 2 2 . 3 2 Penetration Max . | . . . . . . . . . . Secondary Targets 1 | . 1 . . . . . . . . Max Gunslinging Chain 1 | . 1 . . . . . . . . Shots Hit Robots 310 | 22 20 90 1 46 32 22 . 63 14 Core Hits 145 | 10 12 38 1 15 24 11 . 27 7 Critical Kills 1 | . . . . 1 . . . . . Critical Parts Destroyed . | . . . . . . . . . . Critical Strikes 20 | . . 2 . 1 3 4 . 8 2 Burn 2 | . . 2 . . . . . . . Meltdown 1 | . . . . 1 . . . . . Blast 10 | . . . . . 3 . . 5 2 Sever 7 | . . . . . . 4 . 3 . Melee Attacks 95 | . . . . . . 34 . 50 11 Impact . | . . . . . . . . . . Slashing 95 | . . . . . . 34 . 50 11 Piercing . | . . . . . . . . . . Sneak Attacks 2 | . . . . . . 2 . . . Combat Hostiles . | . . . . . . . . . . Follow-up Attacks 4 | . . . . . . . . 3 1 Damage Inflicted 8970 | 229 247 1417 21 955 1814 1046 . 2324 917 Guns 1862 | 229 247 1386 . . . . . . . Cannons 3785 | . . . 21 946 1281 224 . 1074 239 Explosions 1308 | . . . . . 511 187 . 125 485 Melee 1953 | . . . . . . 635 . 1125 193 Ramming 62 | . . 31 . 9 22 . . . . Kinetic 3590 | 229 247 479 . . 1098 224 . 1074 239 Thermal 2729 | . . 907 21 946 183 187 . . 485 Explosive 636 | . . . . . 511 . . 125 . Electromagnetic . | . . . . . . . . . . Impact . | . . . . . . . . . . Slashing 1953 | . . . . . . 635 . 1125 193 Piercing . | . . . . . . . . . . Highest Corruption 4 | . . 2 . . . 4 . . . Average Corruption 3 | . . 2 . . . 3 . . . Corruption Purged . | . . . . . . . . . . Corruption Blocked . | . . . . . . . . . . Effects 15 | . . 3 . . . 12 . . . Message Errors 1 | . . . . . . 1 . . . Matter Fused 5 | . . 2 . . . 3 . . . Energy Discharges 2 | . . . . . . 2 . . . Data Loss (minor) 4 | . . . . . . 4 . . . Data Loss (major) 1 | . . . . . . 1 . . . Misfires 1 | . . 1 . . . . . . . Alerts 1 | . . . . . . 1 . . . Overload Shots . | . . . . . . . . . . Overflow Damage 259 | . . . . . 76 101 . 37 45 Projectiles 31 | . . . . . 14 6 . . 11 Explosions 141 | . . . . . 62 45 . . 34 Melee 87 | . . . . . . 50 . 37 . Knockbacks 25 | . . 2 . . 9 1 . 11 2 Impact 3 | . . 2 . . 1 . . . . Kinetic 22 | . . . . . 8 1 . 11 2 Secondary . | . . . . . . . . . . Self-Inflicted Damage 501 | . . . . . 94 94 . . 313 Shots 8 | . . . . . 3 1 . . 4 Rammed 11 | . . 7 . 3 1 . . . . Targets Rammed 13 | . . 7 . 4 2 . . . . Kicked . | . . . . . . . . . . Crushed 2 | . . . . 1 1 . . . . Highest Temperature 240 | . 12 225 21 240 63 8 . 85 20 Average Temperature 57 | . 6 69 14 70 18 5 . 30 6 Received Heat Transfer 2106 | . 93 192 . 414 198 258 12 741 198 Siege Activations . | . . . . . . . . . . Martial Activations . | . . . . . . . . . . Shielding Activations . | . . . . . . . . . . Robots Disrupted . | . . . . . . . . . . Combat Hostiles . | . . . . . . . . . . Robots Corrupted . | . . . . . . . . . . Combat Hostiles . | . . . . . . . . . . Parts Fried . | . . . . . . . . . . Impact Corruptions . | . . . . . . . . . . Robots Melted 1 | . . . . 1 . . . . . Combat Hostiles 1 | . . . . 1 . . . . . Parts Melted 12 | . . 7 . 5 . . . . . Heat Transferred 4631 | . . 2109 37 1702 333 150 . . 300 Parts Sabotaged . | . . . . . . . . . . Parts Stolen . | . . . . . . . . . . Parts Stripped . | . . . . . . . . . . Power Chain Reactions . | . . . . . . . . . . Alert | -11 -10 -9 -8 -8 -8 -7 -6 -6 -6 ------- Run | Yrd Mat Mat Mat Sto Gar Fac Fac Gar Fac Maximum Alert Level 3 | . . 1 . . 2 1 . 3 2 Low Security (%) 54 | 100 100 89 100 100 17 36 100 26 . Level 1 22 | . . 10 . . 11 63 . 23 71 Level 2 20 | . . . . . 71 . . 42 28 Level 3 1 | . . . . . . . . 7 . Level 4 . | . . . . . . . . . . Level 5 . | . . . . . . . . . . High Security . | . . . . . . . . . . Max Security . | . . . . . . . . . . Peak Influence 744 | 10 97 246 93 183 630 330 67 744 478 Initial 390 | . . 20 93 20 87 330 67 . 390 Average 231 | 1 48 103 71 87 431 223 27 376 381 Influence Increases 3491 | 35 207 648 7 356 623 280 . 1104 231 Destroy 0b10 Robot/C 2140 | . 140 440 . 240 460 160 . 640 60 Destroy 0b10 Robot/NC 78 | 35 5 25 5 . . . . . 8 Destroy Leader 338 | . 32 106 2 80 20 50 . 30 18 Allied During Kill 126 | . . . . . . . . 126 . Successful Hack 29 | . . . . 3 14 12 . . . Disable Machine 156 | . . 15 . 30 . 15 . . 96 Anti-Garrison Action 200 | . . . . . 50 . . 150 . Destroy Structure 172 | . . 2 . 3 34 43 . 53 37 Lose Combat Pursuer 252 | . 30 60 . . 45 . . 105 12 Influence Decreases 3050 | 35 158 475 179 272 127 772 138 360 534 Entered New Map 960 | . . 29 129 30 47 300 71 . 354 Time Decay 1470 | 35 158 396 50 222 . 422 67 . 120 Lost Part 450 | . . 50 . 20 80 50 . 190 60 Lost Ally 170 | . . . . . . . . 170 . Squads Dispatched 8 | . 1 1 . 1 . 3 . . 2 Investigation 1 | . . . . . . 1 . . . Extermination 2 | . . . . . . 2 . . . Reinforcement 3 | . 1 1 . 1 . . . . . Assault 2 | . . . . . . . . . 2 Garrison . | . . . . . . . . . . Intercept . | . . . . . . . . . . Searches Triggered . | . . . . . . . . . . Construction Impeded . | . . . . . . . . . . Haulers Reinforced . | . . . . . . . . . . Active Scanning Responses . | . . . . . . . . . . Cargo Convoy Interrupts . | . . . . . . . . . . Stealth | -11 -10 -9 -8 -8 -8 -7 -6 -6 -6 --------- Run | Yrd Mat Mat Mat Sto Gar Fac Fac Gar Fac Distress Signals 12 | . 3 5 . 2 . 1 . . 1 Communications Jammed . | . . . . . . . . . . Distress Signals . | . . . . . . . . . . Times Spotted 145 | . 13 34 1 16 27 9 1 36 8 Peak Tracking Total 8 | . 5 6 1 4 7 5 4 8 6 Tactical Retreats 16 | . 1 4 . . 3 . . 7 1 Traps | -11 -10 -9 -8 -8 -8 -7 -6 -6 -6 ------- Run | Yrd Mat Mat Mat Sto Gar Fac Fac Gar Fac Traps Triggered 7 | . . . . . 4 2 1 . . Indirectly . | . . . . . . . . . . Trap Hack Attempts . | . . . . . . . . . . Triggered . | . . . . . . . . . . Disarmed . | . . . . . . . . . . Reprogrammed . | . . . . . . . . . . Reused . | . . . . . . . . . . Traps Extracted . | . . . . . . . . . . Installed . | . . . . . . . . . . Triggered . | . . . . . . . . . . Machines | -11 -10 -9 -8 -8 -8 -7 -6 -6 -6 ---------- Run | Yrd Mat Mat Mat Sto Gar Fac Fac Gar Fac Machines Disabled 14 | . . 1 . 2 1 1 . 1 8 Max in Single Turn 8 | . . 1 . 1 1 1 . 1 8 Garrison Access 2 | . . . . . . 1 . . 1 Garrison Relay 2 | . . . . . 1 . . 1 . Machines Repaired . | . . . . . . . . . . Machines Dismantled . | . . . . . . . . . . Machines Sabotaged . | . . . . . . . . . . Overloaded Fab Kills . | . . . . . . . . . . Hacking | -11 -10 -9 -8 -8 -8 -7 -6 -6 -6 --------- Run | Yrd Mat Mat Mat Sto Gar Fac Fac Gar Fac Machines Accessed 9 | . . . . 5 1 2 1 . . Terminals 6 | . . . . 4 1 1 . . . Fabricators . | . . . . . . . . . . Repair Stations . | . . . . . . . . . . Recycling Units . | . . . . . . . . . . Scanalyzers . | . . . . . . . . . . Garrison Access 3 | . . . . 1 . 1 1 . . Total Hacks 16 | . . . . 11 2 2 1 . . Successful 7 | . . . . 3 1 2 1 . . Failed 9 | . . . . 8 1 . . . . Catastrophic 1 | . . . . 1 . . . . . Database Lockouts . | . . . . . . . . . . Manual 5 | . . . . 4 . 1 . . . Terminals 12 | . . . . 9 2 1 . . . Fabricators . | . . . . . . . . . . Repair Stations . | . . . . . . . . . . Recycling Units . | . . . . . . . . . . Scanalyzers . | . . . . . . . . . . Garrison Access 4 | . . . . 2 . 1 1 . . Terminal Hacks 2 | . . . . 1 1 . . . . Open Door 1 | . . . . 1 . . . . . Security Stations 1 | . . . . . 1 . . . . Fabricator Hacks . | . . . . . . . . . . Repair Station Hacks . | . . . . . . . . . . Recycling Unit Hacks . | . . . . . . . . . . Scanalyzer . | . . . . . . . . . . Garrison Access Hacks 3 | . . . . 1 . 1 1 . . Unlock Access 2 | . . . . 1 . . 1 . . Seal Access 1 | . . . . . . 1 . . . Unauthorized Hacks 2 | . . . . 1 . 1 . . . Terminals 2 | . . . . 1 . 1 . . . Skim 2 | . . . . 1 . 1 . . . Fabricators . | . . . . . . . . . . Repair Stations . | . . . . . . . . . . Recycling Units . | . . . . . . . . . . Scanalyzers . | . . . . . . . . . . Garrison Access . | . . . . . . . . . . Data Cores Recovered . | . . . . . . . . . . Used . | . . . . . . . . . . Hacking Detections 4 | . . . . 3 1 . . . . Full Trace Events 1 | . . . . 1 . . . . . Feedback Events . | . . . . . . . . . . Feedback Blocked . | . . . . . . . . . . Robot Schematics Acquired . | . . . . . . . . . . Robots Built . | . . . . . . . . . . Authchips . | . . . . . . . . . . Time . | . . . . . . . . . . Total Robot Build Rating . | . . . . . . . . . . Part Schematics Acquired . | . . . . . . . . . . Parts Built . | . . . . . . . . . . Authchips . | . . . . . . . . . . Time . | . . . . . . . . . . Total Part Build Rating . | . . . . . . . . . . Parts Repaired . | . . . . . . . . . . Time . | . . . . . . . . . . Parts Recycled . | . . . . . . . . . . Recycled Matter . | . . . . . . . . . . Retrieved Matter . | . . . . . . . . . . Retrieved Components . | . . . . . . . . . . Parts Scanalyzed . | . . . . . . . . . . Part Schematics Acquired . | . . . . . . . . . . Parts Damaged . | . . . . . . . . . . Bothacking | -11 -10 -9 -8 -8 -8 -7 -6 -6 -6 ------------ Run | Yrd Mat Mat Mat Sto Gar Fac Fac Gar Fac Used RIF Installer 2 | . . . . . 1 . . 1 . Threat Obfuscator 1 | . . . . . . . . 1 . Robots Hacked . | . . . . . . . . . . Non-combat . | . . . . . . . . . . Combat . | . . . . . . . . . . Robot Hacks Applied . | . . . . . . . . . . Relay Couplers Released 10 | . . . . . 4 . . 4 2 Machine Destruction 10 | . . . . . 4 . . 4 2 Fabnet Peak Effective % . | . . . . . . . . . . Robots Rewired 8 | . . . . . . . . 8 . Allies Hacked . | . . . . . . . . . . Hacks Repelled . | . . . . . . . . . . Allies | -11 -10 -9 -8 -8 -8 -7 -6 -6 -6 -------- Run | Yrd Mat Mat Mat Sto Gar Fac Fac Gar Fac Total Allies 8 | . . . . . . . . 8 . Largest Group 8 | . . . . . . . . 8 . Highest-Rated Group 292 | . . . . . . . . 292 . Highest-Rated Ally 41 | . . . . . . . . 41 . Total Orders 2 | . . . . . . . . 2 . EXPLORE 2 | . . . . . . . . 2 . Ally Attacks 54 | . . . . . . . . 54 . Total Damage 1843 | . . . . . . . . 1843 . Kills 11 | . . . . . . . . 11 . Allies Corrupted . | . . . . . . . . . . Allies Melted . | . . . . . . . . . . Intel | -11 -10 -9 -8 -8 -8 -7 -6 -6 -6 ------- Run | Yrd Mat Mat Mat Sto Gar Fac Fac Gar Fac Active Infowar (turns) 4553 | 130 405 1013 115 468 889 1029 187 317 . Terrain 366 | . . . 114 252 . . . . . Seismic 4404 | 130 405 1013 115 468 889 1029 187 168 . Jamming 592 | . . . . . . 107 187 298 . Robot Analysis Total . | . . . . . . . . . . Derelict Logs Recovered . | . . . . . . . . . . Drone Launches 2 | . . . . . . . . 2 . Drone Recoveries 1 | . . . . . . . . 1 . Exploration | -11 -10 -9 -8 -8 -8 -7 -6 -6 -6 ------------- Run | Yrd Mat Mat Mat Sto Gar Fac Fac Gar Fac Turns Passed 5959 | 301 405 1013 115 468 889 1029 187 1301 251 Spaces Moved 2916 | 144 216 463 66 219 465 554 114 517 158 Core 6 | 3 . . . . . . . 3 . Treads 2730 | 141 216 463 66 219 465 554 114 392 100 Legs . | . . . . . . . . . . Wheels 121 | . . . . . . . . 121 . Hover 58 | . . . . . . . . . 58 Flight 1 | . . . . . . . . 1 . Fastest Speed 50 | 50 160 160 160 160 160 156 156 140 52 Average Speed 159 | 157 160 160 160 160 160 161 156 165 120 Slowest Speed 1080 | 160 160 240 160 160 240 240 156 1080 160 Overloaded Moves . | . . . . . . . . . . Propulsion Burnouts . | . . . . . . . . . . Robots Hopped . | . . . . . . . . . . Potential Cave-ins . | . . . . . . . . . . Cave-ins Triggered . | . . . . . . . . . . Exploration Rate (%) 26 | 8 36 35 6 49 46 21 5 55 5 Regions Visited 9 Branch Regions 1 Pre-discovered Areas 1 | . . . . 1 . . . . . Known Exits Taken 2 | . . . . 1 . . 1 . . Unknown Exits Taken 5 | 1 1 1 1 . . 1 . . . Scrap Searched . | . . . . . . . . . . Spaces Dug 9 | . . . . . . 8 . . 1 Terrain Destroyed 159 | . . . . . 36 54 . 30 39 Melee 9 | . . . . . . 8 . . 1 Projectile 16 | . . . . . 4 2 . 8 2 AOE 134 | . . . . . 32 44 . 22 36 Terrain Rammed . | . . . . . . . . . . Walls Destroyed . | . . . . . . . . . . Machines Disabled . | . . . . . . . . . . Actions | -11 -10 -9 -8 -8 -8 -7 -6 -6 -6 --------- Run | Yrd Mat Mat Mat Sto Gar Fac Fac Gar Fac Total 3691 | 181 243 595 73 273 549 627 124 833 193 Wait 145 | . 6 8 1 11 23 11 . 84 1 Move 2905 | 143 215 462 65 218 463 553 113 515 158 Hop . | . . . . . . . . . . Pick Up 54 | 8 2 14 1 2 9 6 5 7 . Fast Attach 34 | 8 . 7 . 1 . 3 1 11 3 Attach 37 | . . 4 2 2 9 6 . 11 3 Detach 5 | . . . . . 2 . . 1 2 Swap 19 | . 2 6 2 4 . 3 1 1 . Drop 31 | 3 1 10 1 1 . 5 4 2 4 Fire 247 | 19 17 77 1 30 41 6 . 44 12 Melee 90 | . . . . . . 34 . 46 10 Ram . | . . . . . . . . . . Kick . | . . . . . . . . . . Crush 13 | . . 7 . 4 2 . . . . Escape Stasis . | . . . . . . . . . . Rewire 111 | . . . . . . . . 111 . Trap . | . . . . . . . . . . Miscellaneous . | . . . . . . . . . . Route ------- -11/Scrapyard -10/Materials -9/Materials (discovered 2 exits: [*Mat] / [*Min]) -8/Materials -8/Storage -8/Garrison -7/Factory -6/Factory -6/Garrison (discovered 2 exits: [*Fac x2]) -6/Factory History --------- Turn | Location | Event 3 | -11/Scrapyard | Discovered new exit (range 16) 302 | -11/Scrapyard | Entered Materials 313 | -10/Materials | Build established: Mutant 686 | -10/Materials | Discovered new exit (range 8) 707 | -10/Materials | Entered another Materials area 707 | -9/Materials | Evolved 2 slots: Propulsion x1, Utility x1 1423 | -9/Materials | Discovered new exit (range 13) 1451 | -9/Materials | Build established: Scavenger-Mutant 1674 | -9/Materials | Discovered new exit (range 12) 1720 | -9/Materials | Entered another Materials area 1720 | -8/Materials | Evolved 2 slots: Propulsion x1, Utility x1 1726 | -8/Materials | Discovered new exit (range 15) 1835 | -8/Materials | Entered Storage 1871 | -8/Storage | Learned location of Armory (-4) 2144 | -8/Storage | Destroyed 9 combat bots 2301 | -8/Storage | Identified exit to Garrison 2303 | -8/Storage | Entered Garrison 2367 | -8/Garrison | Triggered checkpoint 2409 | -8/Garrison | Triggered checkpoint 2461 | -8/Garrison | Learned Factory security intel 2486 | -8/Garrison | Garrison Relay disabled 2591 | -8/Garrison | Lost 3 parts (2n1u) 2697 | -8/Garrison | Triggered checkpoint 2739 | -8/Garrison | Triggered checkpoint 2797 | -8/Garrison | Triggered checkpoint 2935 | -8/Garrison | Triggered checkpoint 2949 | -8/Garrison | Core integrity fell below 50% 2984 | -8/Garrison | Installed Relay Interface Framework 3073 | -8/Garrison | Discovered new exit (range 15) 3192 | -8/Garrison | Entered Factory 3192 | -7/Factory | Evolved 2 slots: Utility x1, Weapon x1 4192 | -7/Factory | Discovered new exit (range 11) 4221 | -7/Factory | Entered another Factory area 4221 | -6/Factory | Evolved 2 slots: Propulsion x1, Utility x1 4406 | -6/Factory | Identified exit to Garrison 4408 | -6/Factory | Entered Garrison 4444 | -6/Garrison | Triggered checkpoint 4750 | -6/Garrison | Core integrity fell below 50% 4781 | -6/Garrison | Lost 10 parts (1p4n3u2w) 4802 | -6/Garrison | Destroyed 8 combat bots 5074 | -6/Garrison | Triggered checkpoint 5076 | -6/Garrison | Triggered checkpoint 5135 | -6/Garrison | Lost 7 allies 5136 | -6/Garrison | Core integrity fell below 20% 5157 | -6/Garrison | Lost 5 parts (1p3n1w) 5362 | -6/Garrison | Triggered checkpoint 5462 | -6/Garrison | Build established: Scavenger-Gladiator 5494 | -6/Garrison | Garrison Relay disabled 5536 | -6/Garrison | Discovered new exit (range 15) 5669 | -6/Garrison | Discovered new exit (range 10) 5687 | -6/Garrison | Expanded RIF knowledge: Threat Obfuscation 5709 | -6/Garrison | Entered Factory 5934 | -6/Factory | Spotted B-75 Beast 5939 | -6/Factory | Lost 6 parts (1p3n1u1w) 5960 | -6/Factory | Destroyed by B-75 Beast with Magnetic Acceleration Cannon Last Messages --------------- 05924_ Acquired Imp. Hover Unit. 05926_ Dropped Lgt. Treads. 05927_ K-01 Serf collects debris. 05927_ Dropped Lgt. Treads. 05930_ K-01 Serf collects debris. 05930_ U-05 Engineer lays Concrete. 05932_ Detecting nearby Garrison Access. 05937_ K-01 Serf collects debris. 05938_ U-05 Engineer lays Concrete. 05940_ K-01 Serf collects debris. 05941_ U-05 Engineer lays Concrete. 05944_ K-01 Serf collects debris. 05945_ U-05 Engineer lays Concrete. 05945_ K-01 Serf collects debris. 05946_ U-05 Engineer lays Concrete. 05952_ ALERT: Garrison Access compromised, dispatching multiple assault carriers. 05952_ Garrison Access disabled. 05952_ Relay Coupler [Sentry] tumbles out of Garrison Access. 05952_ Relay Coupler [NC] tumbles out of Garrison Access. Map ----- +----------------------------------------------------+ | ! #????????????????????????????????????? | | "" #????????????????????????????????????? | | "" #????????????????????????????????????? | | """ #???????? #??????????????????????????? | | """ " "" ???????" ###????????????????????????? | | """ "R""?????? #????????????????????????? | | [ """ ??? #????????????????????????? | | """=######### #????????????????????????? | | = !! #????????????????????????? | | ###########!! #????????????????????????? | | #????????# ? # ???????????????????????? | | ##???????+ ??B # ???????????????????????? | | #???????# " # ???????????????????????? | | #???????# !!G ????????????????????????? | | #???????#! "" ????????????????????????? | | " #???????# ????????????????????????? | | #???????# ####?????????????????????? | | ##########"#" +?????????????????????? | | ## ###+#?????????????????? | | " ## #?????????????????? | | """"""" !## #?????????????????? | | " """"""" ## k ##????????????????? | | " """"""" ## #????????????????? | | " """"""" + +????????????????? | | % " ## % #????????????????? | | # """"""" ## @ ####????????????????? | | # """"""" ####+######???????????????????? | | # """"""" # #???????????????????? | | # """"""" # #???????????????????? | | # ? # """ """ #???????????????????? | | ######?####### """ """ #???????????????????? | | ?????????????# """ """ #???????????????????? | | ?????????????# #???????????????????? | | ###??????????????# #???????????????????? | | ???????????????????# #???????????????????? | | ???????????????????###########???????????????????? | | ?????????????????????????????????????????????????? | | ?????????????????????????????????????????????????? | | ?????????????????????????????????????????????????? | | ?????????????????????????????????????????????????? | | ?????????????????????????????????????????????????? | | ?????????????????????????????????????????????????? | | ?????????????????????????????????????????????????? | | ?????????????????????????????????????????????????? | | ?????????????????????????????????????????????????? | | ?????????????????????????????????????????????????? | | ?????????????????????????????????????????????????? | | ?????????????????????????????????????????????????? | | ?????????????????????????????????????????????????? | | ?????????????????????????????????????????????????? | +----------------------------------------------------+ Best States ------------- Heat Dissipation 47 Energy Generation 18 Energy Capacity 310 Matter Stores 300 Matter Capacity 300 Sight Range 16 Terrain Scan Range 16 Terrain Scan Density 10 Jamming Range 12 Armor Coverage 600 Evasion (%) 54 Targeting Accuracy 6 Melee Accuracy 8 Recoil Reduction 5 Offensive Hacking 10 Item Schematics ----------------- None Robot Schematics ------------------ None Fabricated ------------ Nothing Repaired ---------- Nothing Alien Tech Used ----------------- None Achievements -------------- None Challenges ------------ None Game ------ Seed SkeletonCorruptionClaws Manual? 0 Play Time 00:33:07 Cumulative 141.2 hours Start 2025.07.10 @ 01:42:38 End 2025.07.10 @ 13:56:18 Sessions 3 Manual Loads 0 Difficulty Rogue Special Mode None Game No. 366 Rogue 366 Adventurer 0 Explorer 0 Win Type - Total 4 Types 3/0/1/0/0/0/0/0/0/0 Lore% 67 Gallery% 57 Achievement% 47 Wizard Run 0 Options --------- Layout 0 ASCII 0 Keyboard 0 Movement Numpad Keybinds 0 Fullscreen 2 Font 18/Terminus Map View 76x50 Zoom Use 0% Tactical HUD 1 Map Filters NONE Filters NONE Steam 1 RUN: 656ca509-1fd8-4f5b-a5d4-5016fb17af3d